fUST/lending_fUST_20250719
["ID","MTS","AMOUNT","RATE_DAILY","PERIOD"]
[373185844,1752897043994,-151.0,0.00019989,2]
[373185845,1752897044004,-151.0,0.00019989,2]
[373185846,1752897044014,-151.0,0.00019989,2]
[373185847,1752897044023,-151.0,0.00019989,2]
[373185848,1752897044033,-151.0,0.00019989,2]
[373185849,1752897044042,-151.0,0.00019989,2]
[373185850,1752897044181,-151.0,0.00019989,2]
[373185851,1752897044191,-151.0,0.00019989,2]
[373185852,1752897044202,-151.0,0.00019989,2]
[373185853,1752897044212,-151.0,0.00019989,2]
[373185854,1752897044222,-151.0,0.00019989,2]
[373185855,1752897044232,-500.0,0.00019998,2]
[373185856,1752897044242,-617.81,0.00019998,2]
[373185857,1752897044252,-460.0,0.00019998,2]
[373185858,1752897044263,-1004.92,0.00019998,2]
[373185859,1752897044272,-460.0,0.00019998,2]
[373185860,1752897044282,-460.0,0.00019998,2]
[373185862,1752897044291,-770.36,0.00019999,2]
[373185864,1752897044300,-460.0,0.00019999,2]
[373185866,1752897044310,-460.0,0.00019999,2]
[373185868,1752897044319,-460.0,0.00019999,2]
[373185870,1752897044328,-542.49,0.00019999,2]
[373185872,1752897044338,-1898.09,0.00019999,2]
[373185874,1752897044348,-671.94,0.0002,2]
[373185876,1752897044357,-1154.57,0.0002,2]
[373185878,1752897044367,-626.11,0.0002,2]
[373185880,1752897044376,-745.98,0.0002,2]
[373185882,1752897044386,-3266.58699974,0.00020029,2]
[373185884,1752897044396,-460.0,0.00020075,2]
[373185886,1752897044406,-678.75,0.00020075,2]
[373185888,1752897044416,-668.92,0.00020075,2]
[373185890,1752897044430,-2647.14,0.00020075,2]
[373185892,1752897044440,-3040.86745577,0.00020107,2]
[373185894,1752897044449,-1241.17,0.00020173,2]
[373185895,1752897044461,-1725.85,0.00020173,2]
[373185896,1752897044483,-460.0,0.00020183,2]
[373185897,1752897044497,-481.443768,0.00020187,2]
[373185898,1752897044507,-202.10282225,0.00020272,2]
[373185900,1752897044516,-617.81,0.00020272,2]
[373185902,1752897044525,-460.0,0.00020272,2]
[373185904,1752897044535,-1004.92,0.00020272,2]
[373185905,1752897044543,-460.0,0.00020272,2]
[373185907,1752897044552,-671.94,0.00020273,2]
[373185910,1752897044564,-770.36,0.00020273,2]
[373185912,1752897044573,-1154.57,0.00020273,2]
[373185914,1752897044583,-460.0,0.00020273,2]
[373185916,1752897044592,-460.0,0.00020273,2]
[373185917,1752897044606,-460.0,0.00020273,2]
[373185920,1752897044617,-626.11,0.00020273,2]
[373185921,1752897044631,-745.98,0.00020273,2]
[373185923,1752897044642,-542.49,0.00020273,2]
[373185924,1752897044652,-1898.09,0.00020273,2]
[373185925,1752897044661,-193.0,0.00020328,2]
[373185926,1752897044671,-236.74415499,0.00020349,2]
[373185927,1752897044681,-678.75,0.00020349,2]
[373185929,1752897044690,-668.92,0.00020349,2]
[373185930,1752897044699,-2647.14,0.00020349,2]
[373185932,1752897044709,-3040.86745577,0.00020383,3]
[373185935,1752897044719,-1241.17,0.00020447,2]
[373185936,1752897044728,-1725.85,0.00020447,2]
[373185938,1752897044737,-178.0216191,0.00020466,2]
[373185940,1752897044745,-159.7314836,0.00020466,2]
[373185942,1752897044754,-358.82753,0.00020466,2]
[373185944,1752897044763,-250.0,0.00020498,2]
[373185946,1752897044772,-156.0,0.00020521,3]
[373185948,1752897044781,-501.51906247,0.00020544,2]
[373185950,1752897044791,-500.0,0.00020544,2]
[373185952,1752897044802,-501.04531724,0.00020544,2]
[373185954,1752897044813,-500.0,0.00020544,2]
[373185956,1752897044822,-617.81,0.00020546,2]
[373185958,1752897044832,-460.0,0.00020546,2]
[373185960,1752897044842,-1004.92,0.00020546,2]
[373185962,1752897044851,-460.0,0.00020546,2]
[373185964,1752897044861,-671.94,0.00020547,2]
[373185966,1752897044870,-770.36,0.00020547,2]
[373185967,1752897044880,-1154.57,0.00020547,2]
[373185968,1752897044890,-460.0,0.00020547,2]
[373185970,1752897044900,-460.0,0.00020547,2]
[373185972,1752897044909,-331.37870809,0.00020547,2]
[373185974,1752897044919,-626.11,0.00020547,2]
[373185976,1752897044928,-745.98,0.00020547,2]
[373185978,1752897044937,-542.49,0.00020547,2]
[373185980,1752897044946,-1898.09,0.00020547,2]
[373185982,1752897044956,-151.282927,0.00020567,2]
[373185984,1752897044965,-151.0,0.00020567,2]
[373185986,1752897044974,-152.450528,0.00020567,2]
[373185988,1752897044984,-151.0,0.00020567,2]
[373185990,1752897044994,-151.0,0.00020567,2]
[373185992,1752897045003,-151.0,0.00020567,2]
[373185994,1752897045012,-151.0,0.00020567,2]
[373185996,1752897045022,-151.0,0.00020567,2]
[373185998,1752897045031,-151.0,0.00020567,2]
[373186000,1752897045040,-151.208484,0.00020567,2]
[373186002,1752897045049,-151.0,0.00020567,2]
[373186004,1752897045059,-151.0,0.00020567,2]
[373186006,1752897045068,-858.637738,0.00020575,2]
[373186008,1752897045078,-429.3901486,0.00020575,2]
[373186010,1752897045086,-429.3901486,0.00020575,2]
[373186012,1752897045095,-429.3901486,0.00020575,2]
[373186014,1752897045104,-429.3901486,0.00020575,2]
[373186015,1752897045114,-429.3901486,0.00020575,2]
[373186018,1752897045124,-426.2608618,0.00020575,2]
[373186020,1752897045134,-151.0,0.00020589,2]
[373186021,1752897045144,-151.0,0.00020589,2]
[373186022,1752897045154,-151.0,0.00020589,2]
[373186023,1752897045163,-429.3901486,0.00020603,2]
[373186024,1752897045173,-429.3901486,0.00020603,2]
[373186025,1752897045182,-429.3901486,0.00020603,2]
[373186026,1752897045191,-429.3901486,0.00020603,2]
[373186027,1752897045201,-429.3901486,0.00020603,2]
[373186028,1752897045210,-433.7005544,0.00020603,2]
[373186029,1752897045219,-429.3901486,0.00020603,2]
[373186030,1752897045229,-429.3901486,0.00020603,2]
[373186031,1752897045238,-151.0,0.00020603,2]
[373186032,1752897045248,-172.578056,0.00020603,2]
[373186033,1752897045258,-151.490521,0.00020603,2]
[373186034,1752897045268,-151.0,0.00020603,2]
[373186035,1752897045277,-151.0,0.00020603,2]
[373186036,1752897045287,-678.75,0.00020623,2]
[373186037,1752897045297,-668.92,0.00020623,2]
[373186038,1752897045307,-2647.14,0.00020623,2]
[373186039,1752897045316,-618.97160078,0.00020633,2]
[373186040,1752897045326,-358.108017,0.00020656,2]
[373186041,1752897045335,-3040.86745577,0.00020659,3]
[373186042,1752897045345,-1241.17,0.00020721,2]
[373186043,1752897045355,-560.0,0.00020731,2]
[373186044,1752897045364,-109596.88761214,0.00020739,2]
[373186045,1752897045374,-152.480128,0.00020739,2]
[373186046,1752897045384,-153.243988,0.00020739,2]
[373186047,1752897045394,-152.06639,0.00020739,2]
[373186048,1752897045403,-151.0,0.00020739,2]
[373186049,1752897045413,-262.51255,0.00020739,2]
[373186050,1752897045422,-1201.486897,0.00020739,2]
[373186051,1752897045431,-1201.486897,0.00020739,2]
[373186052,1752897045441,-152.821105,0.00020739,2]
[373186053,1752897045450,-151.0,0.00020739,2]
[373186054,1752897045459,-151.0,0.00020739,2]
[373186055,1752897045469,-151.0,0.00020739,2]
[373186056,1752897045478,-198.453047,0.00020739,2]
[373186057,1752897045487,-151.0,0.00020739,2]
[373186058,1752897045497,-151.0,0.00020739,2]
[373186059,1752897045507,-234.571149,0.00020739,2]
[373186060,1752897045516,-301.290918,0.00020739,2]
[373186061,1752897045526,-151.0,0.00020739,2]
[373186062,1752897045535,-153.378373,0.00020739,2]
[373186063,1752897045545,-151.0,0.00020739,2]
[373186064,1752897045554,-151.0,0.00020739,2]
[373186065,1752897045564,-151.0,0.00020739,2]
[373186066,1752897045573,-151.0,0.00020739,2]
[373186067,1752897045583,-151.0,0.00020739,2]
[373186068,1752897045592,-151.0,0.00020739,2]
[373186069,1752897045601,-151.0,0.00020739,2]
[373186070,1752897045611,-151.0,0.00020739,2]
[373186071,1752897045621,-151.0,0.00020739,2]
[373186072,1752897045634,-151.0,0.00020739,2]
[373186073,1752897045645,-151.0,0.00020739,2]
[373186074,1752897045655,-151.862641,0.00020739,2]
[373186075,1752897045664,-151.0,0.00020739,2]
[373186076,1752897045675,-500.0,0.00020773,2]
[373186077,1752897045684,-501.72457853,0.00020773,2]
[373186078,1752897045695,-151.0,0.00020773,2]
[373186079,1752897045716,-151.0,0.00020773,2]
[373186080,1752897045733,-151.0,0.00020773,2]
[373186081,1752897045742,-151.0,0.00020773,2]
[373186082,1752897045751,-151.0,0.00020773,2]
[373186083,1752897045761,-151.0,0.00020773,2]
[373186084,1752897045770,-151.0,0.00020773,2]
[373186085,1752897045780,-151.0,0.00020773,2]
[373186086,1752897045791,-151.0,0.00020773,2]
[373186087,1752897045801,-151.0,0.00020773,2]
[373186088,1752897045811,-151.0,0.00020773,2]
[373186089,1752897045820,-3801.642,0.00020788,2]
[373186090,1752897045830,-151.0,0.00020788,2]
[373186091,1752897045839,-151.0,0.00020788,2]
[373186092,1752897045849,-151.0,0.00020788,2]
[373186093,1752897045858,-151.0,0.00020788,2]
[373186094,1752897045868,-151.0,0.00020788,2]
[373186095,1752897045877,-151.0,0.00020788,2]
[373186096,1752897045888,-207.4,0.00020788,2]
[373186097,1752897045898,-151.0,0.00020788,2]
[373186098,1752897045908,-151.0,0.00020788,2]
[373186099,1752897045917,-25000.0,0.00020788,2]
[373186100,1752897045927,-151.0,0.00020788,2]
[373186101,1752897045936,-151.0,0.00020788,2]
[373186102,1752897045947,-151.0,0.00020788,2]
[373186103,1752897045957,-151.0,0.00020788,2]
[373186104,1752897045968,-151.0,0.00020788,2]
[373186105,1752897045977,-151.0,0.00020788,2]
[373186106,1752897045986,-151.0,0.00020788,2]
[373186107,1752897045996,-151.0,0.00020788,2]
[373186108,1752897046006,-716.45673598,0.00020788,2]
[373186109,1752897046016,-151.0,0.00020788,2]
[373186110,1752897046025,-151.0,0.00020788,2]
[373186112,1752897046034,-151.0,0.00020788,2]
[373186114,1752897046043,-151.0,0.00020788,2]
[373186117,1752897046052,-151.0,0.00020788,2]
[373186118,1752897046062,-151.0,0.00020788,2]
[373186120,1752897046071,-151.0,0.00020788,2]
[373186121,1752897046080,-153.56003024,0.00020788,2]
[373186123,1752897046089,-151.0,0.00020788,2]
[373186125,1752897046098,-151.0,0.00020788,2]
[373186126,1752897046108,-151.0,0.00020788,2]
[373186127,1752897046118,-151.0,0.00020788,2]
[373186128,1752897046127,-151.0,0.00020788,2]
[373186129,1752897046137,-151.0,0.00020788,2]
[373186130,1752897046147,-151.0,0.00020788,2]
[373186131,1752897046157,-151.0,0.00020788,2]
[373186132,1752897046166,-172.578056,0.00020788,2]
[373186133,1752897046176,-517.294,0.00020801,2]
[373186134,1752897046185,-617.81,0.0002082,2]
[373186135,1752897046194,-460.0,0.0002082,2]
[373186137,1752897046205,-1004.92,0.0002082,2]
[373186138,1752897046215,-460.0,0.0002082,2]
[373186139,1752897046224,-671.94,0.00020821,2]
[373186140,1752897046234,-770.36,0.00020821,2]
[373186141,1752897046246,-1154.57,0.00020821,2]
[373186143,1752897046255,-460.0,0.00020821,2]
[373186145,1752897046265,-345.02393318,0.00020821,2]
[373186147,1752897046274,-626.11,0.00020821,2]
[373186149,1752897046283,-708.22197212,0.00020821,2]
[373186192,1752897046947,-461.2585389,0.00016611,2]
[373186193,1752897046957,-158.7414611,0.00016611,2]
[373186211,1752897339211,275.068208,0.00015562,2]
[373186217,1752897450402,3110.6745643,0.00015512,2]
[373186223,1752897527827,300.0,7.4e-07,120]
[373186224,1752897537722,300.0,7.4e-07,120]
[373186225,1752897544788,300.0,7.4e-07,120]
[373186226,1752897553189,300.0,7.4e-07,120]
[373186227,1752897566424,300.0,7.4e-07,120]
[373186228,1752897576626,300.0,7.4e-07,120]
[373186229,1752897585469,151.0,7.4e-07,120]
[373186232,1752897854119,157.5171748,0.00015499,2]
[373186233,1752897855558,457.371579,0.00013699,2]
[373186235,1752897956267,24900.0,0.00015496,2]
[373186241,1752898039158,-156.96924885,0.00016313,2]
[373186242,1752898039183,-255.0,0.00016356,2]
[373186243,1752898039205,-715.15067394,0.00016399,2]
[373186244,1752898039226,-3919.55141,0.00016413,2]
[373186248,1752898094766,300.0,7.4e-07,120]
[373186249,1752898102868,300.0,7.4e-07,120]
[373186251,1752898110034,300.0,7.4e-07,120]
[373186252,1752898119251,300.0,7.4e-07,120]
[373186253,1752898129147,198.0,7.4e-07,120]
[373186309,1752898232696,-625.75683968,0.00016398,2]
[373186311,1752898232705,-300.0,0.00016489,2]
[373186313,1752898232715,-182.0,0.00016489,2]
[373186315,1752898232724,-625.93,0.0001649,3]
[373186317,1752898232734,-312.96,0.0001649,3]
[373186319,1752898232743,-156.48,0.0001649,3]
[373186321,1752898232753,-399.07995744,0.0001649,3]
[373186323,1752898232764,-70.41004256,0.0001649,3]
[373186325,1752898232774,-845.66995744,0.00016495,2]
[373186327,1752898232786,-354.33004256,0.00016495,2]
[373186329,1752898232795,-1200.0,0.00016496,2]
[373186331,1752898232805,-460.0,0.00016497,2]
[373186333,1752898232815,-460.0,0.00016497,2]
[373186335,1752898232824,-460.0,0.00016497,2]
[373186354,1752898232982,-461.2954037,0.00016497,2]
[373186357,1752898232996,-460.0,0.00016497,2]
[373186359,1752898233006,-460.0,0.00016497,2]
[373186361,1752898233015,-460.0,0.00016497,2]
[373186363,1752898233024,-460.0,0.00016497,2]
[373186365,1752898233034,-460.0,0.00016497,2]
[373186367,1752898233043,-460.0,0.00016497,2]
[373186369,1752898233052,-460.0,0.00016497,2]
[373186371,1752898233061,-508.55586678,0.00016497,2]
[373186373,1752898233071,-460.0,0.00016497,2]
[373186375,1752898233081,-1577.74,0.00016497,2]
[373186377,1752898233091,-460.0,0.00016497,2]
[373186379,1752898233100,-460.49501114,0.00016497,2]
[373186381,1752898233111,-460.0,0.00016497,2]
[373186383,1752898233120,-460.0,0.00016497,2]
[373186385,1752898233130,-460.0,0.00016497,2]
[373186387,1752898233139,-460.0,0.00016497,2]
[373186389,1752898233150,-463.63240011,0.00016497,2]
[373186391,1752898233159,-460.0,0.00016498,2]
[373186393,1752898233169,-460.0,0.00016498,2]
[373186395,1752898233180,-460.83661739,0.00016498,2]
[373186397,1752898233192,-460.0,0.00016498,2]
[373186399,1752898233202,-460.0,0.00016498,2]
[373186401,1752898233212,-461.94087353,0.00016498,2]
[373186403,1752898233222,-460.0,0.00016498,2]
[373186405,1752898233232,-460.0,0.00016498,2]
[373186407,1752898233242,-2013.66,0.00016498,2]
[373186409,1752898233252,-460.0,0.00016498,2]
[373186411,1752898233262,-460.0,0.00016498,2]
[373186413,1752898233271,-460.0,0.00016498,2]
[373186415,1752898233282,-460.0,0.00016498,2]
[373186417,1752898233294,-460.0,0.00016498,2]
[373186419,1752898233304,-1709.05,0.00016498,2]
[373186421,1752898233313,-460.0,0.00016498,2]
[373186423,1752898233322,-460.0,0.00016498,2]
[373186425,1752898233333,-993.05,0.00016498,2]
[373186427,1752898233342,-460.0,0.00016498,2]
[373186430,1752898233353,-248.17076339,0.00016498,2]
[373186432,1752898233363,-3636.05,0.00016498,2]
[373186434,1752898233374,-460.0,0.00016498,2]
[373186436,1752898233384,-460.0,0.00016498,2]
[373186438,1752898233394,-460.0,0.00016498,2]
[373186440,1752898233404,-460.0,0.00016498,2]
[373186442,1752898233414,-460.0,0.00016498,2]
[373186444,1752898233423,-460.0,0.00016498,2]
[373186446,1752898233433,-460.0,0.00016498,2]
[373186448,1752898233443,-460.0,0.00016498,2]
[373186451,1752898233454,-460.0,0.00016498,2]
[373186453,1752898233463,-14570.24873249,0.00016498,2]
[373186455,1752898233475,-16974.31682476,0.00016498,2]
[373186457,1752898233485,-369.56098505,0.00016499,2]
[373186459,1752898233495,-500.0,0.00016499,2]
[373186461,1752898233504,-500.0,0.00016499,2]
[373186463,1752898233513,-500.0,0.00016499,2]
[373186465,1752898233523,-284.6655791,0.00016499,2]
[373186466,1752898233532,-541.24418375,0.00016499,2]
[373186468,1752898233542,-500.0,0.00016499,2]
[373186470,1752898233552,-500.0,0.00016499,2]
[373186472,1752898233561,-500.0,0.00016499,2]
[373186474,1752898233571,-500.0,0.00016499,2]
[373186476,1752898233581,-500.0,0.00016499,2]
[373186478,1752898233590,-500.0,0.00016499,2]
[373186479,1752898233599,-500.0,0.00016499,2]
[373186480,1752898233608,-500.0,0.00016499,2]
[373186482,1752898233617,-556.89395642,0.00016499,2]
[373186484,1752898233626,-500.0,0.00016499,2]
[373186486,1752898233636,-460.0,0.00016499,2]
[373186488,1752898233645,-460.0,0.00016499,2]
[373186490,1752898233656,-460.0,0.00016499,2]
[373186492,1752898233666,-460.0,0.00016499,2]
[373186494,1752898233675,-460.0,0.00016499,2]
[373186496,1752898233686,-460.0,0.00016499,2]
[373186498,1752898233696,-461.77044282,0.00016499,2]
[373186500,1752898233706,-460.0,0.00016499,2]
[373186502,1752898233716,-460.0,0.00016499,2]
[373186504,1752898233726,-460.0,0.00016499,2]
[373186506,1752898233736,-460.0,0.00016499,2]
[373186508,1752898233746,-460.0,0.00016499,2]
[373186510,1752898233755,-460.0,0.00016499,2]
[373186512,1752898233765,-460.0,0.00016499,2]
[373186514,1752898233775,-487.07585154,0.00016499,2]
[373186516,1752898233785,-460.0,0.00016499,2]
[373186518,1752898233795,-460.0,0.00016499,2]
[373186520,1752898233805,-1304.98,0.00016499,2]
[373186522,1752898233814,-125164.1989274,0.000165,2]
[373186524,1752898233824,-460.0,0.0001651,2]
[373186526,1752898233834,-460.0,0.0001651,2]
[373186528,1752898233843,-462.28676759,0.0001651,2]
[373186529,1752898233854,-460.0,0.0001651,2]
[373186530,1752898233863,-460.0,0.0001651,2]
[373186531,1752898233873,-460.0,0.0001651,2]
[373186532,1752898233883,-460.0,0.0001651,2]
[373186533,1752898233892,-460.0,0.0001651,2]
[373186534,1752898233902,-460.0,0.0001651,2]
[373186535,1752898233911,-461.42495905,0.0001651,2]
[373186536,1752898233920,-460.0,0.0001651,2]
[373186537,1752898233929,-243.46606917,0.0001651,2]
[373186538,1752898233940,-460.0,0.0001651,2]
[373186539,1752898233950,-463.15339768,0.0001651,2]
[373186540,1752898233960,-460.0,0.0001651,2]
[373186541,1752898233970,-361.76866059,0.0001651,2]
[373186542,1752898233979,-460.0,0.0001651,2]
[373186543,1752898233990,-460.35180045,0.0001651,2]
[373186544,1752898234000,-460.0,0.0001651,2]
[373186545,1752898234011,-388.8,0.0001651,2]
[373186546,1752898234021,-460.0,0.0001651,2]
[373186547,1752898234031,-460.0,0.0001651,2]
[373186548,1752898234040,-460.0,0.0001651,2]
[373186549,1752898234050,-460.0,0.0001651,2]
[373186550,1752898234060,-460.0,0.0001651,2]
[373186551,1752898234070,-460.0,0.0001651,2]
[373186552,1752898234079,-460.0,0.0001651,2]
[373186553,1752898234089,-460.0,0.0001651,2]
[373186554,1752898234099,-460.0,0.0001651,2]
[373186555,1752898234108,-460.0,0.0001651,2]
[373186556,1752898234118,-460.0,0.0001651,2]
[373186557,1752898234128,-460.0,0.0001651,2]
[373186558,1752898234137,-460.0,0.0001651,2]
[373186559,1752898234147,-460.0,0.0001651,2]
[373186560,1752898234157,-460.0,0.0001651,2]
[373186561,1752898234167,-460.0,0.0001651,2]
[373186562,1752898234177,-460.0,0.0001651,2]
[373186563,1752898234187,-460.0,0.0001651,2]
[373186564,1752898234197,-460.0,0.0001651,2]
[373186565,1752898234207,-460.0,0.0001651,2]
[373186566,1752898234218,-460.0,0.0001651,2]
[373186567,1752898234227,-460.0,0.0001651,2]
[373186568,1752898234236,-593.6195946,0.0001651,2]
[373186569,1752898234246,-460.58917293,0.0001651,2]
[373186570,1752898234255,-460.0,0.0001651,2]
[373186571,1752898234264,-460.0,0.0001651,2]
[373186572,1752898234274,-500.0,0.0001651,2]
[373186573,1752898234285,-420.0,0.0001651,2]
[373186574,1752898234296,-460.0,0.0001651,2]
[373186575,1752898234306,-460.0,0.0001651,2]
[373186576,1752898234316,-461.82606316,0.0001651,2]
[373186577,1752898234327,-460.0,0.0001651,2]
[373186578,1752898234337,-500.0,0.0001651,2]
[373186579,1752898234347,-500.0,0.0001651,2]
[373186580,1752898234356,-460.0,0.0001651,2]
[373186581,1752898234366,-460.41452723,0.0001651,2]
[373186582,1752898234376,-460.0,0.0001651,2]
[373186583,1752898234385,-460.0,0.0001651,2]
[373186584,1752898234395,-460.0,0.0001651,2]
[373186585,1752898234405,-460.0,0.0001651,2]
[373186586,1752898234416,-460.0,0.0001651,2]
[373186587,1752898234426,-460.0,0.0001651,2]
[373186588,1752898234435,-460.0,0.0001651,2]
[373186589,1752898234446,-376.180692,0.0001651,2]
[373186590,1752898234456,-460.0,0.0001651,2]
[373186591,1752898234465,-460.0,0.0001651,2]
[373186592,1752898234476,-460.0,0.0001651,2]
[373186593,1752898234486,-460.0,0.0001651,2]
[373186594,1752898234496,-460.0,0.0001651,2]
[373186595,1752898234505,-460.0,0.0001651,2]
[373186596,1752898234515,-460.0,0.0001651,2]
[373186597,1752898234526,-504.75954036,0.0001651,2]
[373186598,1752898234537,-263.97060594,0.0001651,2]
[373186599,1752898234547,-460.0,0.0001651,2]
[373186600,1752898234556,-460.0,0.0001651,2]
[373186601,1752898234566,-460.0,0.0001651,2]
[373186602,1752898234576,-469.76921546,0.0001651,2]
[373186603,1752898234586,-460.0,0.0001651,2]
[373186604,1752898234595,-460.0,0.0001651,2]
[373186605,1752898234605,-460.0,0.0001651,2]
[373186606,1752898234615,-460.0,0.0001651,2]
[373186607,1752898234624,-460.0,0.0001651,2]
[373186608,1752898234634,-460.0,0.0001651,2]
[373186609,1752898234643,-460.0,0.0001651,2]
[373186610,1752898234653,-460.0,0.0001651,2]
[373186611,1752898234663,-460.0,0.0001651,2]
[373186612,1752898234672,-460.0,0.0001651,2]
[373186613,1752898234681,-460.0,0.0001651,2]
[373186614,1752898234692,-460.0,0.0001651,2]
[373186615,1752898234702,-460.0,0.0001651,2]
[373186616,1752898234712,-460.0,0.0001651,2]
[373186617,1752898234721,-460.0,0.0001651,2]
[373186618,1752898234731,-460.0,0.0001651,2]
[373186619,1752898234742,-460.0,0.0001651,2]
[373186620,1752898234751,-460.0,0.0001651,2]
[373186621,1752898234761,-460.0,0.0001651,2]
[373186622,1752898234771,-460.0,0.0001651,2]
[373186623,1752898234780,-460.0,0.0001651,2]
[373186624,1752898234790,-460.0,0.0001651,2]
[373186625,1752898234800,-460.0,0.0001651,2]
[373186626,1752898234809,-491.20282824,0.0001651,2]
[373186627,1752898234819,-460.0,0.0001651,2]
[373186628,1752898234829,-460.0,0.0001651,2]
[373186629,1752898234839,-460.0,0.0001651,2]
[373186630,1752898234848,-460.0,0.0001651,2]
[373186631,1752898234857,-460.0,0.0001651,2]
[373186632,1752898234867,-460.0,0.0001651,2]
[373186633,1752898234879,-460.0,0.0001651,2]
[373186634,1752898234888,-463.15134521,0.0001651,2]
[373186635,1752898234898,-460.0,0.0001651,2]
[373186636,1752898234907,-460.0,0.0001651,2]
[373186637,1752898234919,-460.0,0.0001651,2]
[373186638,1752898234931,-460.0,0.0001651,2]
[373186639,1752898234943,-460.0,0.0001651,2]
[373186640,1752898234953,-460.0,0.0001651,2]
[373186641,1752898234962,-460.0,0.0001651,2]
[373186642,1752898234972,-460.0,0.0001651,2]
[373186643,1752898234983,-460.0,0.0001651,2]
[373186644,1752898234992,-460.0,0.0001651,2]
[373186645,1752898235002,-460.0,0.0001651,2]
[373186646,1752898235012,-461.39653791,0.0001651,2]
[373186647,1752898235024,-462.00117944,0.0001651,2]
[373186648,1752898235034,-460.0,0.0001651,2]
[373186649,1752898235044,-465.21334892,0.0001651,2]
[373186650,1752898235061,-460.0,0.0001651,2]
[373186651,1752898235076,-460.0,0.0001651,2]
[373186652,1752898235086,-460.0,0.0001651,2]
[373186653,1752898235095,-460.0,0.0001651,2]
[373186654,1752898235105,-460.0,0.0001651,2]
[373186655,1752898235115,-460.0,0.0001651,2]
[373186656,1752898235125,-460.0,0.0001651,2]
[373186657,1752898235135,-460.0,0.0001651,2]
[373186658,1752898235144,-460.0,0.0001651,2]
[373186659,1752898235154,-460.0,0.0001651,2]
[373186660,1752898235164,-460.0,0.0001651,2]
[373186661,1752898235173,-460.0,0.0001651,2]
[373186662,1752898235184,-566.09000161,0.0001651,2]
[373186663,1752898235195,-460.0,0.0001651,2]
[373186664,1752898235205,-460.0,0.0001651,2]
[373186665,1752898235215,-462.27257057,0.0001651,2]
[373186666,1752898235225,-460.0,0.0001651,2]
[373186667,1752898235235,-528.59081241,0.0001651,2]
[373186668,1752898235245,-460.0,0.0001651,2]
[373186669,1752898235256,-461.70479876,0.0001651,2]
[373186670,1752898235266,-525.62,0.0001651,2]
[373186671,1752898235276,-460.0,0.0001651,2]
[373186672,1752898235289,-460.0,0.0001651,2]
[373186673,1752898235300,-382.72524277,0.0001651,2]
[373186674,1752898235311,-462.32007879,0.0001651,2]
[373186675,1752898235321,-462.29626293,0.0001651,2]
[373186676,1752898235332,-460.0,0.0001651,2]
[373186677,1752898235346,-460.0,0.0001651,2]
[373186678,1752898235366,-460.0,0.0001651,2]
[373186679,1752898235382,-460.0,0.0001651,2]
[373186680,1752898235401,-460.0,0.0001651,2]
[373186681,1752898235415,-465.35570083,0.0001651,2]
[373186682,1752898235424,-461.68815062,0.0001651,2]
[373186683,1752898235434,-460.0,0.0001651,2]